Workbook

Sheet Лист1
A1: Время для работ в день | C1: =F1-E1-F2+E2 -> 08:00:00 | D1: Рабочий день | E1: 08:30:00 | F1: 17:30:00 | K1: Верно для случая когда ОТКРЫТО и ЗАКРЫТО имеют одно и тоже число и в пределах рабочего времени
D2: Обед | E2: 12:00:00 | F2: 13:00:00
A3: ДЛИТЕЛЬНОСТЬ РАБОТ E-D (ЧАС:МИН:СЕК) | B3: Количество затронутых суток | C3: Количество рабочих дней в часах | D3: НАЧАЛО | E3: КОНЕЦ | F3: НАЧАЛО (ТОЛЬКО ВРЕМЯ) | G3: КОНЕЦ (ТОЛЬКО ВРЕМЯ) | H3: Чистое время работ | I3: Тоже от колонок G,H | J3: День недели НАЧАЛО | K3: День недели КОНЕЦ | N3: UDF (до минут)
A4: 0.005474537036 | B4: =NETWORKDAYS(D4,IF(E4="",TODAY(),E4)) -> 1 | C4: =$C$1*B4 -> 08:00:00 | D4: 2012-07-19T10:26:41 | E4: 2012-07-19T10:34:34 | F4: =MOD(D4,1) -> 10:26:41 | G4: =MOD(E4,1) -> 10:34:34 | H4: =C4-IF((OR(WEEKDAY(D4)=1,WEEKDAY(D4)=7)),0,(IF(MOD(D4,1)<$E$1,0,(IF(AND($E$1<MOD(D4,1),MOD(D4,1)<$E$2),MOD(D4,1)-$E$1,(IF(AND($E$2<MOD(D4,1),MOD(D4,1)<$F$2),$E$2-$E$1,(IF(AND($F$2<MOD(D4,1),MOD(D4,1)<$F$1),$E$2-$E$1+MOD(D4,1)-$F$2,(IF(MOD(D4,1)>$F$1,$C$1)))))))))))-IF((OR(WEEKDAY(IF(E4="",TODAY(),E4))=1,WEEKDAY(IF(E4="",TODAY(),E4))=7)),0,(IF(MOD(IF(E4="",TODAY(),E4),1)<$E$1,$C$1,(IF(AND($E$1<MOD(IF(E4="",TODAY(),E4),1),MOD(IF(E4="",TODAY(),E4),1)<$E$2),$F$1-$F$2+$E$2-MOD(IF(E4="",TODAY(),E4),1),(IF(AND($E$2<MOD(IF(E4="",TODAY(),E4),1),MOD(IF(E4="",TODAY(),E4),1)<$F$2),$F$1-$F$2,(IF(AND($F$2<MOD(IF(E4="",TODAY(),E4),1),MOD(IF(E4="",TODAY(),E4),1)<$F$1),$F$1-MOD(IF(E4="",TODAY(),E4),1),(IF(MOD(IF(E4="",TODAY(),E4),1)>$F$1,0))))))))))) -> 0.005474537036 | I4: =C4-(IF(F4<$E$1,0,(IF(AND($E$1<F4,F4<$E$2),F4-$E$1,(IF(AND($E$2<F4,F4<$F$2),$E$2-$E$1,(IF(AND($F$2<F4,F4<$F$1),$E$2-$E$1+F4-$F$2,(IF(F4>$F$1,$C$1))))))))))-(IF(G4<$E$1,$C$1,(IF(AND($E$1<G4,G4<$E$2),$F$1-$F$2+$E$2-G4,(IF(AND($E$2<G4,G4<$F$2),$F$1-$F$2,(IF(AND($F$2<G4,G4<$F$1),$F$1-G4,(IF(G4>$F$1,0)))))))))) -> 0.005474537036 | J4: =WEEKDAY(D4,2) -> 4 | K4: =WEEKDAY(E4,2) -> 4 | M4: =(WEEKDAY(D4,2)<6)*($E$2-MAX(MIN(MOD(D4,1),$E$2),$E$1)+$F$1-MAX(MIN(MOD(D4,1),$F$1),$F$2))+(WEEKDAY(E4,2)<6)*(MAX(MIN(MOD(E4,1),$E$2),$E$1)-$E$1+MAX(MIN(MOD(E4,1),$F$1),$F$2)-$F$2)+(NETWORKDAYS(WORKDAY(D4+1,-1),WORKDAY(E4-1,1))-2)*$C$1 -> 0.005474537036 | N4: =NetWorkTime(D4,E4) -> 0.005555555556
A5: 0.005740740744 | B5: 1 | C5: =$C$1*B5 -> 0.3333333333 | D5: 2012-07-17T15:41:59 | E5: 2012-07-17T15:50:15 | F5: 15:41:59 | G5: 15:50:15 | H5: 0.005740740744 | I5: 0.005740740744 | J5: 2 | K5: 2 | M5: =(WEEKDAY(D5,2)<6)*($E$2-MAX(MIN(MOD(D5,1),$E$2),$E$1)+$F$1-MAX(MIN(MOD(D5,1),$F$1),$F$2))+(WEEKDAY(E5,2)<6)*(MAX(MIN(MOD(E5,1),$E$2),$E$1)-$E$1+MAX(MIN(MOD(E5,1),$F$1),$F$2)-$F$2)+(NETWORKDAYS(WORKDAY(D5+1,-1),WORKDAY(E5-1,1))-2)*$C$1 -> 0.005740740744 | N5: =NetWorkTime(D5,E5) -> 0.005555555556
A6: 0.01221064815 | B6: 1 | C6: 0.3333333333 | D6: 2012-07-13T09:47:04 | E6: 2012-07-13T10:04:39 | F6: 09:47:04 | G6: 10:04:39 | H6: 0.01221064815 | I6: 0.01221064815 | J6: 5 | K6: 5 | M6: 0.01221064815 | N6: 0.0125
A7: 0.01486111111 | B7: 1 | C7: 0.3333333333 | D7: 2012-07-17T13:41:18 | E7: 2012-07-17T14:02:42 | F7: 13:41:18 | G7: 14:02:42 | H7: 0.01486111111 | I7: 0.01486111111 | J7: 2 | K7: 2 | M7: 0.01486111111 | N7: =NetWorkTime(D7,E7) -> 0.01527777778
A8: 0.01543981482 | B8: 1 | C8: 0.3333333333 | D8: 2012-07-06T14:57:22 | E8: 2012-07-06T15:19:36 | F8: 14:57:22 | G8: 15:19:36 | H8: 0.01543981482 | I8: 0.01543981482 | J8: 5 | K8: 5 | M8: 0.01543981482 | N8: 0.01597222222
A9: 0.0165625 | B9: 1 | C9: 0.3333333333 | D9: 2012-07-04T12:47:14 | E9: 2012-07-04T13:11:05 | F9: 12:47:14 | G9: 13:11:05 | H9: 0.007696759259 | I9: 0.007696759259 | J9: 3 | K9: 3 | M9: 0.007696759259 | N9: 0.007638888889
A10: 0.01680555556 | B10: 1 | C10: 0.3333333333 | D10: 2012-07-20T14:57:51 | E10: 2012-07-20T15:22:03 | F10: 14:57:51 | G10: 15:22:03 | H10: 0.01680555556 | I10: 0.01680555556 | J10: 5 | K10: 5 | M10: 0.01680555556 | N10: 0.01666666667
A11: 0.01829861111 | B11: 1 | C11: 0.3333333333 | D11: 2012-07-11T15:12:32 | E11: 2012-07-11T15:38:53 | F11: 15:12:32 | G11: 15:38:53 | H11: 0.01829861111 | I11: 0.01829861111 | J11: 3 | K11: 3 | M11: 0.01829861111 | N11: 0.01805555556
A12: 0.0191087963 | B12: 1 | C12: 0.3333333333 | D12: 2012-07-12T16:07:11 | E12: 2012-07-12T16:34:42 | F12: 16:07:11 | G12: 16:34:42 | H12: 0.0191087963 | I12: 0.0191087963 | J12: 4 | K12: 4 | M12: 0.0191087963 | N12: 0.01944444444
A13: 0.01925925926 | B13: 1 | C13: 0.3333333333 | D13: 2012-07-20T13:59:14 | E13: 2012-07-20T14:26:58 | F13: 13:59:14 | G13: 14:26:58 | H13: 0.01925925926 | I13: 0.01925925926 | J13: 5 | K13: 5 | M13: 0.01925925926 | N13: 0.01944444444
A14: 0.02024305555 | B14: 1 | C14: 0.3333333333 | D14: 2012-07-04T10:32:53 | E14: 2012-07-04T11:02:02 | F14: 10:32:53 | G14: 11:02:02 | H14: 0.02024305555 | I14: 0.02024305555 | J14: 3 | K14: 3 | M14: 0.02024305555 | N14: 0.02013888889
A15: 0.02084490741 | B15: 1 | C15: 0.3333333333 | D15: 2012-07-13T11:33:14 | E15: 2012-07-13T12:03:15 | F15: 11:33:14 | G15: 12:03:15 | H15: 0.01858796296 | I15: 0.01858796296 | J15: 5 | K15: 5 | M15: 0.01858796296 | N15: =NetWorkTime(D15,E15) -> 0.01875
A16: 0.02122685185 | B16: 1 | C16: 0.3333333333 | D16: 2012-07-03T10:29:24 | E16: 2012-07-03T10:59:58 | F16: 10:29:24 | G16: 10:59:58 | H16: 0.02122685185 | I16: 0.02122685185 | J16: 2 | K16: 2 | M16: 0.02122685185 | N16: 0.02152777778
A17: 0.02187500001 | B17: 1 | C17: 0.3333333333 | D17: 2012-07-17T13:39:45 | E17: 2012-07-17T14:11:15 | F17: 13:39:45 | G17: 14:11:15 | H17: 0.02187500001 | I17: 0.02187500001 | J17: 2 | K17: 2 | M17: 0.02187500001 | N17: 0.02152777778
A18: 0.02362268518 | B18: 1 | C18: 0.3333333333 | D18: 2012-07-12T15:31:37 | E18: 2012-07-12T16:05:38 | F18: 15:31:37 | G18: 16:05:38 | H18: 0.02362268518 | I18: 0.02362268518 | J18: 4 | K18: 4 | M18: 0.02362268518 | N18: 0.02361111111
A19: 0.02678240741 | B19: 1 | C19: 0.3333333333 | D19: 2012-07-19T11:50:27 | E19: 2012-07-19T12:29:01 | F19: 11:50:27 | G19: 12:29:01 | H19: 0.006631944445 | I19: 0.006631944445 | J19: 4 | K19: 4 | M19: 0.006631944445 | N19: 0.006944444444
A20: 0.02711805556 | B20: 1 | C20: 0.3333333333 | D20: 2012-07-19T11:49:39 | E20: 2012-07-19T12:28:42 | F20: 11:49:39 | G20: 12:28:42 | H20: 0.007187499999 | I20: 0.007187499999 | J20: 4 | K20: 4 | M20: 0.007187499999 | N20: 0.006944444444
A21: 0.0374537037 | B21: 1 | C21: 0.3333333333 | D21: 2012-07-06T15:27:24 | E21: 2012-07-06T16:21:20 | F21: 15:27:24 | G21: 16:21:20 | H21: 0.0374537037 | I21: 0.0374537037 | J21: 5 | K21: 5 | M21: 0.0374537037 | N21: 0.0375
A22: 0.03868055555 | B22: 1 | C22: 0.3333333333 | D22: 2012-07-17T15:32:36 | E22: 2012-07-17T16:28:18 | F22: 15:32:36 | G22: 16:28:18 | H22: 0.03868055555 | I22: 0.03868055555 | J22: 2 | K22: 2 | M22: 0.03868055555 | N22: 0.03819444444
A23: 0.0439699074 | B23: 1 | C23: 0.3333333333 | D23: 2012-07-19T11:05:36 | E23: 2012-07-19T12:08:55 | F23: 11:05:36 | G23: 12:08:55 | H23: 0.03777777778 | I23: 0.03777777778 | J23: 4 | K23: 4 | M23: 0.03777777778 | N23: 0.0375
A24: 0.04418981481 | B24: 1 | C24: 0.3333333333 | D24: 2012-07-10T16:01:52 | E24: 2012-07-10T17:05:30 | F24: 16:01:52 | G24: 17:05:30 | H24: 0.04418981481 | I24: 0.04418981481 | J24: 2 | K24: 2 | M24: 0.04418981481 | N24: =NetWorkTime(D24,E24) -> 0.04444444444
A25: 0.04586805555 | B25: 1 | C25: 0.3333333333 | D25: 2012-07-13T09:55:54 | E25: 2012-07-13T11:01:57 | F25: 09:55:54 | G25: 11:01:57 | H25: 0.04586805555 | I25: 0.04586805555 | J25: 5 | K25: 5 | M25: 0.04586805555 | N25: 0.04583333333
A26: 0.04670138889 | B26: 1 | C26: 0.3333333333 | D26: 2012-07-10T12:01:33 | E26: 2012-07-10T13:08:48 | F26: 12:01:33 | G26: 13:08:48 | H26: 0.006111111111 | I26: 0.006111111111 | J26: 2 | K26: 2 | M26: 0.006111111111 | N26: 0.00625
A27: 0.04688657408 | B27: 1 | C27: 0.3333333333 | D27: 2012-07-09T13:54:30 | E27: 2012-07-09T15:02:01 | F27: 13:54:30 | G27: 15:02:01 | H27: 0.04688657408 | I27: 0.04688657408 | J27: 1 | K27: 1 | M27: 0.04688657408 | N27: 0.04722222222
A28: 0.04962962963 | B28: 1 | C28: 0.3333333333 | D28: 2012-07-11T11:14:29 | E28: 2012-07-11T12:25:57 | F28: 11:14:29 | G28: 12:25:57 | H28: 0.03160879629 | I28: 0.03160879629 | J28: 3 | K28: 3 | M28: 0.03160879629 | N28: 0.03194444444
A29: 0.04991898149 | B29: 1 | C29: 0.3333333333 | D29: 2012-07-04T10:03:35 | E29: 2012-07-04T11:15:28 | F29: 10:03:35 | G29: 11:15:28 | H29: 0.04991898149 | I29: 0.04991898149 | J29: 3 | K29: 3 | M29: 0.04991898149 | N29: 0.04930555556
A30: 0.05090277777 | B30: 1 | C30: 0.3333333333 | D30: 2012-07-12T14:48:16 | E30: 2012-07-12T16:01:34 | F30: 14:48:16 | G30: 16:01:34 | H30: 0.05090277777 | I30: 0.05090277777 | J30: 4 | K30: 4 | M30: 0.05090277777 | N30: 0.05138888889
A31: 0.05361111111 | B31: 1 | C31: 0.3333333333 | D31: 2012-07-10T15:47:53 | E31: 2012-07-10T17:05:05 | F31: 15:47:53 | G31: 17:05:05 | H31: 0.05361111111 | I31: 0.05361111111 | J31: 2 | K31: 2 | M31: 0.05361111111 | N31: 0.05347222222
A32: 0.05518518519 | B32: 1 | C32: 0.3333333333 | D32: 2012-07-25T09:41:08 | E32: 2012-07-25T11:00:36 | F32: 09:41:08 | G32: 11:00:36 | H32: 0.05518518519 | I32: 0.05518518519 | J32: 3 | K32: 3 | M32: 0.05518518519 | N32: 0.05555555556
A33: 0.05947916667 | B33: 1 | C33: 0.3333333333 | D33: 2012-07-19T09:47:34 | E33: 2012-07-19T11:13:13 | F33: 09:47:34 | G33: 11:13:13 | H33: 0.05947916667 | I33: 0.05947916667 | J33: 4 | K33: 4 | M33: 0.05947916667 | N33: 0.05902777778
A34: 0.06018518518 | B34: 1 | C34: 0.3333333333 | D34: 2012-07-20T09:38:28 | E34: 2012-07-20T11:05:08 | F34: 09:38:28 | G34: 11:05:08 | H34: 0.06018518518 | I34: 0.06018518518 | J34: 5 | K34: 5 | M34: 0.06018518518 | N34: 0.06041666667
A35: 0.06358796296 | B35: 1 | C35: 0.3333333333 | D35: 2012-07-24T13:44:11 | E35: 2012-07-24T15:15:45 | F35: 13:44:11 | G35: 15:15:45 | H35: 0.06358796296 | I35: 0.06358796296 | J35: 2 | K35: 2 | M35: 0.06358796296 | N35: 0.06388888889
A36: 0.06488425926 | B36: =NETWORKDAYS(D36,IF(E36="",TODAY(),E36)) -> 1 | C36: =$C$1*B36 -> 0.3333333333 | D36: 2012-07-12T08:29:05 | E36: 2012-07-12T10:02:31 | F36: =MOD(D36,1) -> 08:29:05 | G36: =MOD(E36,1) -> 10:02:31 | H36: =C36-IF((OR(WEEKDAY(D36)=1,WEEKDAY(D36)=7)),0,(IF(MOD(D36,1)<$E$1,0,(IF(AND($E$1<MOD(D36,1),MOD(D36,1)<$E$2),MOD(D36,1)-$E$1,(IF(AND($E$2<MOD(D36,1),MOD(D36,1)<$F$2),$E$2-$E$1,(IF(AND($F$2<MOD(D36,1),MOD(D36,1)<$F$1),$E$2-$E$1+MOD(D36,1)-$F$2,(IF(MOD(D36,1)>$F$1,$C$1)))))))))))-IF((OR(WEEKDAY(IF(E36="",TODAY(),E36))=1,WEEKDAY(IF(E36="",TODAY(),E36))=7)),0,(IF(MOD(IF(E36="",TODAY(),E36),1)<$E$1,$C$1,(IF(AND($E$1<MOD(IF(E36="",TODAY(),E36),1),MOD(IF(E36="",TODAY(),E36),1)<$E$2),$F$1-$F$2+$E$2-MOD(IF(E36="",TODAY(),E36),1),(IF(AND($E$2<MOD(IF(E36="",TODAY(),E36),1),MOD(IF(E36="",TODAY(),E36),1)<$F$2),$F$1-$F$2,(IF(AND($F$2<MOD(IF(E36="",TODAY(),E36),1),MOD(IF(E36="",TODAY(),E36),1)<$F$1),$F$1-MOD(IF(E36="",TODAY(),E36),1),(IF(MOD(IF(E36="",TODAY(),E36),1)>$F$1,0))))))))))) -> 0.06424768518 | I36: =C36-(IF(F36<$E$1,0,(IF(AND($E$1<F36,F36<$E$2),F36-$E$1,(IF(AND($E$2<F36,F36<$F$2),$E$2-$E$1,(IF(AND($F$2<F36,F36<$F$1),$E$2-$E$1+F36-$F$2,(IF(F36>$F$1,$C$1))))))))))-(IF(G36<$E$1,$C$1,(IF(AND($E$1<G36,G36<$E$2),$F$1-$F$2+$E$2-G36,(IF(AND($E$2<G36,G36<$F$2),$F$1-$F$2,(IF(AND($F$2<G36,G36<$F$1),$F$1-G36,(IF(G36>$F$1,0)))))))))) -> 0.06424768518 | J36: =WEEKDAY(D36,2) -> 4 | K36: =WEEKDAY(E36,2) -> 4 | M36: 0.06424768518 | N36: 0.06458333333
A37: 0.06545138889 | B37: 1 | C37: 0.3333333333 | D37: 2012-07-11T10:13:40 | E37: 2012-07-11T11:47:55 | F37: 10:13:40 | G37: 11:47:55 | H37: 0.06545138889 | I37: 0.06545138889 | J37: 3 | K37: 3 | M37: 0.06545138889 | N37: 0.06527777778
A38: 0.07688657408 | B38: 1 | C38: 0.3333333333 | D38: 2012-06-26T10:44:48 | E38: 2012-06-26T12:35:31 | F38: 10:44:48 | G38: 12:35:31 | H38: 0.05222222222 | I38: 0.05222222222 | J38: 2 | K38: 2 | M38: 0.05222222222 | N38: 0.05208333333
A39: 0.08099537036 | B39: 1 | C39: 0.3333333333 | D39: 2012-07-20T09:11:05 | E39: 2012-07-20T11:07:43 | F39: 09:11:05 | G39: 11:07:43 | H39: 0.08099537036 | I39: 0.08099537036 | J39: 5 | K39: 5 | M39: 0.08099537036 | N39: 0.08125
A40: 0.08236111111 | B40: 1 | C40: 0.3333333333 | D40: 2012-07-06T14:05:56 | E40: 2012-07-06T16:04:32 | F40: 14:05:56 | G40: 16:04:32 | H40: 0.08236111111 | I40: 0.08236111111 | J40: 5 | K40: 5 | M40: 0.08236111111 | N40: 0.08263888889
A41: 0.08436342593 | B41: 1 | C41: 0.3333333333 | D41: 2012-07-12T11:57:26 | E41: 2012-07-12T13:58:55 | F41: 11:57:26 | G41: 13:58:55 | H41: 0.04269675926 | I41: 0.04269675926 | J41: 4 | K41: 4 | M41: 0.04269675926 | N41: 0.04305555556
A42: 0.08605324075 | B42: 1 | C42: 0.3333333333 | D42: 2012-07-12T10:38:49 | E42: 2012-07-12T12:42:44 | F42: 10:38:49 | G42: 12:42:44 | H42: 0.05637731482 | I42: 0.05637731482 | J42: 4 | K42: 4 | M42: 0.05637731482 | N42: 0.05625
A43: 0.08971064815 | B43: 1 | C43: 0.3333333333 | D43: 2012-07-19T08:10:12 | E43: 2012-07-19T10:19:23 | F43: 08:10:12 | G43: 10:19:23 | H43: 0.07596064815 | I43: 0.07596064815 | J43: 4 | K43: 4 | M43: 0.07596064815 | N43: 0.07569444444
A44: 0.09383101852 | B44: 1 | C44: 0.3333333333 | D44: 2012-07-19T11:35:32 | E44: 2012-07-19T13:50:39 | F44: 11:35:32 | G44: 13:50:39 | H44: 0.05216435185 | I44: 0.05216435185 | J44: 4 | K44: 4 | M44: 0.05216435185 | N44: 0.05208333333
A45: 0.09449074074 | B45: 1 | C45: 0.3333333333 | D45: 2012-07-09T08:44:11 | E45: 2012-07-09T11:00:15 | F45: 08:44:11 | G45: 11:00:15 | H45: 0.09449074074 | I45: 0.09449074074 | J45: 1 | K45: 1 | M45: 0.09449074074 | N45: 0.09444444444
A46: 0.09538194445 | B46: 1 | C46: 0.3333333333 | D46: 2012-07-25T10:03:35 | E46: 2012-07-25T12:20:56 | F46: 10:03:35 | G46: 12:20:56 | H46: 0.08084490741 | I46: 0.08084490741 | J46: 3 | K46: 3 | M46: 0.08084490741 | N46: 0.08055555556
A47: 0.09607638889 | B47: 1 | C47: 0.3333333333 | D47: 2012-07-13T11:06:44 | E47: 2012-07-13T13:25:05 | F47: 11:06:44 | G47: 13:25:05 | H47: 0.05440972223 | I47: 0.05440972223 | J47: 5 | K47: 5 | M47: 0.05440972223 | N47: 0.05416666667
A48: 0.09652777778 | B48: 1 | C48: 0.3333333333 | D48: 2012-07-20T07:55:46 | E48: 2012-07-20T10:14:46 | F48: 07:55:46 | G48: 10:14:46 | H48: 0.07275462963 | I48: 0.07275462963 | J48: 5 | K48: 5 | M48: 0.07275462963 | N48: 0.07291666667
A49: 0.09712962963 | B49: 1 | C49: 0.3333333333 | D49: 2012-07-20T09:29:38 | E49: 2012-07-20T11:49:30 | F49: 09:29:38 | G49: 11:49:30 | H49: 0.09712962963 | I49: 0.09712962963 | J49: 5 | K49: 5 | M49: 0.09712962963 | N49: 0.09652777778
A50: 0.1008333333 | B50: 1 | C50: 0.3333333333 | D50: 2012-07-02T13:36:18 | E50: 2012-07-02T16:01:30 | F50: 13:36:18 | G50: 16:01:30 | H50: 0.1008333333 | I50: 0.1008333333 | J50: 1 | K50: 1 | M50: 0.1008333333 | N50: 0.1013888889
A51: 0.1082291667 | B51: 1 | C51: 0.3333333333 | D51: 2012-07-20T09:26:01 | E51: 2012-07-20T12:01:52 | F51: 09:26:01 | G51: 12:01:52 | H51: 0.1069328704 | I51: 0.1069328704 | J51: 5 | K51: 5 | M51: 0.1069328704 | N51: 0.1069444444
A52: 0.1090972222 | B52: 1 | C52: 0.3333333333 | D52: 2012-07-17T10:15:28 | E52: 2012-07-17T12:52:34 | F52: 10:15:28 | G52: 12:52:34 | H52: 0.07259259259 | I52: 0.07259259259 | J52: 2 | K52: 2 | M52: 0.07259259259 | N52: 0.07291666667
A53: 0.1096527778 | B53: 1 | C53: 0.3333333333 | D53: 2012-07-16T11:28:07 | E53: 2012-07-16T14:06:01 | F53: 11:28:07 | G53: 14:06:01 | H53: 0.06798611111 | I53: 0.06798611111 | J53: 1 | K53: 1 | M53: 0.06798611111 | N53: 0.06805555556
A54: 0.1129513889 | B54: 1 | C54: 0.3333333333 | D54: 2012-07-20T09:20:47 | E54: 2012-07-20T12:03:26 | F54: 09:20:47 | G54: 12:03:26 | H54: 0.1105671296 | I54: 0.1105671296 | J54: 5 | K54: 5 | M54: 0.1105671296 | N54: 0.1104166667
A55: 0.1137037037 | B55: 1 | C55: 0.3333333333 | D55: 2012-07-02T13:20:23 | E55: 2012-07-02T16:04:07 | F55: 13:20:23 | G55: 16:04:07 | H55: 0.1137037037 | I55: 0.1137037037 | J55: 1 | K55: 1 | M55: 0.1137037037 | N55: 0.1138888889
A56: 0.1155324074 | B56: 1 | C56: 0.3333333333 | D56: 2012-07-13T12:57:46 | E56: 2012-07-13T15:44:08 | F56: 12:57:46 | G56: 15:44:08 | H56: 0.1139814815 | I56: 0.1139814815 | J56: 5 | K56: 5 | M56: 0.1139814815 | N56: 0.1138888889
A57: 0.1231134259 | B57: 1 | C57: 0.3333333333 | D57: 2012-07-02T10:32:20 | E57: 2012-07-02T13:29:37 | F57: 10:32:20 | G57: 13:29:37 | H57: 0.08144675926 | I57: 0.08144675926 | J57: 1 | K57: 1 | M57: 0.08144675926 | N57: 0.08194444444
A58: 0.1365509259 | B58: 1 | C58: 0.3333333333 | D58: 2012-07-20T08:11:23 | E58: 2012-07-20T11:28:01 | F58: 08:11:23 | G58: 11:28:01 | H58: 0.1236226852 | I58: 0.1236226852 | J58: 5 | K58: 5 | M58: 0.1236226852 | N58: 0.1236111111
A59: 0.1386226852 | B59: 1 | C59: 0.3333333333 | D59: 2012-07-20T09:21:29 | E59: 2012-07-20T12:41:06 | F59: 09:21:29 | G59: 12:41:06 | H59: 0.1100810185 | I59: 0.1100810185 | J59: 5 | K59: 5 | M59: 0.1100810185 | N59: 0.1104166667
A60: 0.1409722222 | B60: 1 | C60: 0.3333333333 | D60: 2012-07-20T08:39:50 | E60: 2012-07-20T12:02:50 | F60: 08:39:50 | G60: 12:02:50 | H60: 0.1390046296 | I60: 0.1390046296 | J60: 5 | K60: 5 | M60: 0.1390046296 | N60: 0.1388888889
A61: 0.1433333333 | B61: 1 | C61: 0.3333333333 | D61: 2012-07-19T08:43:15 | E61: 2012-07-19T12:09:39 | F61: 08:43:15 | G61: 12:09:39 | H61: 0.1366319444 | I61: 0.1366319444 | J61: 4 | K61: 4 | M61: 0.1366319444 | N61: 0.1368055556
A62: 0.1522106481 | B62: 1 | C62: 0.3333333333 | D62: 2012-07-20T10:09:09 | E62: 2012-07-20T13:48:20 | F62: 10:09:09 | G62: 13:48:20 | H62: 0.1105439815 | I62: 0.1105439815 | J62: 5 | K62: 5 | M62: 0.1105439815 | N62: 0.1104166667
A63: 0.1612037037 | B63: 1 | C63: 0.3333333333 | D63: 2012-07-20T08:10:03 | E63: 2012-07-20T12:02:11 | F63: 08:10:03 | G63: 12:02:11 | H63: 0.1458333333 | I63: 0.1458333333 | J63: 5 | K63: 5 | M63: 0.1458333333 | N63: 0.1458333333
A64: 0.1633796296 | B64: 1 | C64: 0.3333333333 | D64: 2012-07-12T09:39:37 | E64: 2012-07-12T13:34:53 | F64: 09:39:37 | G64: 13:34:53 | H64: 0.121712963 | I64: 0.121712963 | J64: 4 | K64: 4 | M64: 0.121712963 | N64: 0.1215277778
A65: 0.1652662037 | B65: 1 | C65: 0.3333333333 | D65: 2012-06-28T09:27:38 | E65: 2012-06-28T13:25:37 | F65: 09:27:38 | G65: 13:25:37 | H65: 0.123599537 | I65: 0.123599537 | J65: 4 | K65: 4 | M65: 0.123599537 | N65: 0.1236111111
A66: 0.1701041667 | B66: 1 | C66: 0.3333333333 | D66: 2012-07-25T09:14:41 | E66: 2012-07-25T13:19:38 | F66: 09:14:41 | G66: 13:19:38 | H66: 0.1284375 | I66: 0.1284375 | J66: 3 | K66: 3 | M66: 0.1284375 | N66: 0.1284722222
A67: 0.1856597222 | B67: 1 | C67: 0.3333333333 | D67: 2012-07-20T10:55:36 | E67: 2012-07-20T15:22:57 | F67: 10:55:36 | G67: 15:22:57 | H67: 0.1439930556 | I67: 0.1439930556 | J67: 5 | K67: 5 | M67: 0.1439930556 | N67: 0.14375
A68: 0.1871643519 | B68: =NETWORKDAYS(D68,IF(E68="",TODAY(),E68)) -> 1 | C68: =$C$1*B68 -> 0.3333333333 | D68: 2012-07-23T08:41:07 | E68: 2012-07-23T13:10:38 | F68: =MOD(D68,1) -> 08:41:07 | G68: =MOD(E68,1) -> 13:10:38 | H68: =C68-IF((OR(WEEKDAY(D68)=1,WEEKDAY(D68)=7)),0,(IF(MOD(D68,1)<$E$1,0,(IF(AND($E$1<MOD(D68,1),MOD(D68,1)<$E$2),MOD(D68,1)-$E$1,(IF(AND($E$2<MOD(D68,1),MOD(D68,1)<$F$2),$E$2-$E$1,(IF(AND($F$2<MOD(D68,1),MOD(D68,1)<$F$1),$E$2-$E$1+MOD(D68,1)-$F$2,(IF(MOD(D68,1)>$F$1,$C$1)))))))))))-IF((OR(WEEKDAY(IF(E68="",TODAY(),E68))=1,WEEKDAY(IF(E68="",TODAY(),E68))=7)),0,(IF(MOD(IF(E68="",TODAY(),E68),1)<$E$1,$C$1,(IF(AND($E$1<MOD(IF(E68="",TODAY(),E68),1),MOD(IF(E68="",TODAY(),E68),1)<$E$2),$F$1-$F$2+$E$2-MOD(IF(E68="",TODAY(),E68),1),(IF(AND($E$2<MOD(IF(E68="",TODAY(),E68),1),MOD(IF(E68="",TODAY(),E68),1)<$F$2),$F$1-$F$2,(IF(AND($F$2<MOD(IF(E68="",TODAY(),E68),1),MOD(IF(E68="",TODAY(),E68),1)<$F$1),$F$1-MOD(IF(E68="",TODAY(),E68),1),(IF(MOD(IF(E68="",TODAY(),E68),1)>$F$1,0))))))))))) -> 0.1454976852 | I68: =C68-(IF(F68<$E$1,0,(IF(AND($E$1<F68,F68<$E$2),F68-$E$1,(IF(AND($E$2<F68,F68<$F$2),$E$2-$E$1,(IF(AND($F$2<F68,F68<$F$1),$E$2-$E$1+F68-$F$2,(IF(F68>$F$1,$C$1))))))))))-(IF(G68<$E$1,$C$1,(IF(AND($E$1<G68,G68<$E$2),$F$1-$F$2+$E$2-G68,(IF(AND($E$2<G68,G68<$F$2),$F$1-$F$2,(IF(AND($F$2<G68,G68<$F$1),$F$1-G68,(IF(G68>$F$1,0)))))))))) -> 0.1454976852 | J68: =WEEKDAY(D68,2) -> 1 | K68: =WEEKDAY(E68,2) -> 1 | M68: 0.1454976852 | N68: 0.1458333333
A69: 0.2029166667 | B69: 1 | C69: 0.3333333333 | D69: 2012-07-20T09:52:56 | E69: 2012-07-20T14:45:08 | F69: 09:52:56 | G69: 14:45:08 | H69: 0.16125 | I69: 0.16125 | J69: 5 | K69: 5 | M69: =(WEEKDAY(D69,2)<6)*($E$2-MAX(MIN(MOD(D69,1),$E$2),$E$1)+$F$1-MAX(MIN(MOD(D69,1),$F$1),$F$2))+(WEEKDAY(E69,2)<6)*(MAX(MIN(MOD(E69,1),$E$2),$E$1)-$E$1+MAX(MIN(MOD(E69,1),$F$1),$F$2)-$F$2)+(NETWORKDAYS(WORKDAY(D69+1,-1),WORKDAY(E69-1,1))-2)*$C$1 -> 0.16125 | N69: =NetWorkTime(D69,E69) -> 0.1611111111
A70: 0.2399189815 | B70: 1 | C70: 0.3333333333 | D70: 2012-07-19T09:21:28 | E70: 2012-07-19T15:06:57 | F70: 09:21:28 | G70: 15:06:57 | H70: 0.1982523148 | I70: 0.1982523148 | J70: 4 | K70: 4 | M70: 0.1982523148 | N70: 0.1986111111
A71: 0.2447453704 | B71: 1 | C71: 0.3333333333 | D71: 2012-07-13T10:04:17 | E71: 2012-07-13T15:56:43 | F71: 10:04:17 | G71: 15:56:43 | H71: 0.2030787037 | I71: 0.2030787037 | J71: 5 | K71: 5 | M71: 0.2030787037 | N71: 0.2034722222
A72: 0.2663310185 | B72: 1 | C72: 0.3333333333 | D72: 2012-06-25T09:51:35 | E72: 2012-06-25T16:15:06 | F72: 09:51:35 | G72: 16:15:06 | H72: 0.2246643518 | I72: 0.2246643518 | J72: 1 | K72: 1 | M72: 0.2246643518 | N72: 0.2243055556
A73: 0.2682986111 | B73: 1 | C73: 0.3333333333 | D73: 2012-07-04T08:54:16 | E73: 2012-07-04T15:20:37 | F73: 08:54:16 | G73: 15:20:37 | H73: 0.2266319444 | I73: 0.2266319444 | J73: 3 | K73: 3 | M73: 0.2266319444 | N73: 0.2270833333
A74: 0.2712384259 | B74: 1 | C74: 0.3333333333 | D74: 2012-07-03T10:32:33 | E74: 2012-07-03T17:03:08 | F74: 10:32:33 | G74: 17:03:08 | H74: 0.2295717593 | I74: 0.2295717593 | J74: 2 | K74: 2 | M74: 0.2295717593 | N74: 0.2291666667
A75: 0.2725578704 | B75: 1 | C75: 0.3333333333 | D75: 2012-06-25T09:29:20 | E75: 2012-06-25T16:01:49 | F75: 09:29:20 | G75: 16:01:49 | H75: 0.2308912037 | I75: 0.2308912037 | J75: 1 | K75: 1 | M75: 0.2308912037 | N75: 0.23125
A76: 0.2772222222 | B76: 1 | C76: 0.3333333333 | D76: 2012-07-04T10:15:45 | E76: 2012-07-04T16:54:57 | F76: 10:15:45 | G76: 16:54:57 | H76: 0.2355555556 | I76: 0.2355555556 | J76: 3 | K76: 3 | M76: 0.2355555556 | N76: 0.2354166667
A77: 0.2814699074 | B77: 1 | C77: 0.3333333333 | D77: 2012-07-23T08:55:53 | E77: 2012-07-23T15:41:12 | F77: 08:55:53 | G77: 15:41:12 | H77: 0.2398032407 | I77: 0.2398032407 | J77: 1 | K77: 1 | M77: 0.2398032407 | N77: 0.2395833333
A78: 0.2890162037 | B78: 1 | C78: 0.3333333333 | D78: 2012-07-12T09:25:32 | E78: 2012-07-12T16:21:43 | F78: 09:25:32 | G78: 16:21:43 | H78: 0.247349537 | I78: 0.247349537 | J78: 4 | K78: 4 | M78: 0.247349537 | N78: 0.2472222222
A79: 0.2902083333 | B79: 1 | C79: 0.3333333333 | D79: 2012-07-24T08:59:25 | E79: 2012-07-24T15:57:19 | F79: 08:59:25 | G79: 15:57:19 | H79: 0.2485416667 | I79: 0.2485416667 | J79: 2 | K79: 2 | M79: 0.2485416667 | N79: 0.2486111111
A80: 0.3314467593 | B80: 1 | C80: 0.3333333333 | D80: 2012-07-17T08:44:28 | E80: 2012-07-17T16:41:45 | F80: 08:44:28 | G80: 16:41:45 | H80: 0.2897800926 | I80: 0.2897800926 | J80: 2 | K80: 2 | M80: 0.2897800926 | N80: 0.2902777778
A81: 0.335162037 | B81: 1 | C81: 0.3333333333 | D81: 2012-07-11T08:58:25 | E81: 2012-07-11T17:01:03 | F81: 08:58:25 | G81: 17:01:03 | H81: 0.2934953704 | I81: 0.2934953704 | J81: 3 | K81: 3 | M81: 0.2934953704 | N81: 0.29375
A82: 0.3512384259 | B82: 1 | C82: 0.3333333333 | D82: 2012-07-03T10:16:13 | E82: 2012-07-03T18:42:00 | F82: 10:16:13 | G82: 18:42:00 | H82: 0.2595717593 | I82: 0.2595717593 | J82: 2 | K82: 2 | M82: 0.2595717593 | N82: =NetWorkTime(D82,E82) -> 0.2597222222
A83: 0.6058217593 | B83: 2 | C83: 0.6666666667 | D83: 2012-07-16T18:44:09 | E83: 2012-07-17T09:16:32 | F83: 18:44:09 | G83: 09:16:32 | H83: 0.03231481481 | I83: 0.03231481481 | J83: 1 | K83: 2 | M83: 0.03231481481 | N83: 0.03263888889
A84: 0.6819328704 | B84: 2 | C84: 0.6666666667 | D84: 2012-07-16T18:23:45 | E84: 2012-07-17T10:45:44 | F84: 18:23:45 | G84: 10:45:44 | H84: 0.09425925926 | I84: 0.09425925926 | J84: 1 | K84: 2 | M84: 0.09425925926 | N84: 0.09444444444
A85: 0.6843171296 | B85: 2 | C85: 0.6666666667 | D85: 2012-07-09T16:59:59 | E85: 2012-07-10T09:25:24 | F85: 16:59:59 | G85: 09:25:24 | H85: 0.05931712963 | I85: 0.05931712963 | J85: 1 | K85: 2 | M85: 0.05931712963 | N85: 0.05902777778
A86: 0.6950347222 | B86: 2 | C86: 0.6666666667 | D86: 2012-07-16T18:06:12 | E86: 2012-07-17T10:47:03 | F86: 18:06:12 | G86: 10:47:03 | H86: 0.09517361111 | I86: 0.09517361111 | J86: 1 | K86: 2 | M86: 0.09517361111 | N86: 0.09513888889
A87: 0.7104050926 | B87: 2 | C87: 0.6666666667 | D87: 2012-07-19T17:16:52 | E87: 2012-07-20T10:19:51 | F87: 17:16:52 | G87: 10:19:51 | H87: 0.08540509259 | I87: 0.08540509259 | J87: 4 | K87: 5 | M87: 0.08540509259 | N87: 0.08541666667
A88: 0.7112037037 | B88: 2 | C88: 0.6666666667 | D88: 2012-07-18T14:57:44 | E88: 2012-07-19T08:01:52 | F88: 14:57:44 | G88: 08:01:52 | H88: 0.1057407407 | I88: 0.1057407407 | J88: 3 | K88: 4 | M88: 0.1057407407 | N88: 0.1055555556
A89: 0.7467824074 | B89: 2 | C89: 0.6666666667 | D89: 2012-07-16T14:19:35 | E89: 2012-07-17T08:14:57 | F89: 14:19:35 | G89: 08:14:57 | H89: 0.1322337963 | I89: 0.1322337963 | J89: 1 | K89: 2 | M89: 0.1322337963 | N89: 0.1319444444
A90: 0.7668171296 | B90: 2 | C90: 0.6666666667 | D90: 2012-07-23T16:45:15 | E90: 2012-07-24T11:09:28 | F90: 16:45:15 | G90: 11:09:28 | H90: 0.1418171296 | I90: 0.1418171296 | J90: 1 | K90: 2 | M90: 0.1418171296 | N90: 0.1416666667
A91: 0.8099884259 | B91: 2 | C91: 0.6666666667 | D91: 2012-07-24T13:28:27 | E91: 2012-07-25T08:54:50 | F91: 13:28:27 | G91: 08:54:50 | H91: 0.1849884259 | I91: 0.1849884259 | J91: 2 | K91: 3 | M91: 0.1849884259 | N91: 0.1854166667
A92: 0.8206018519 | B92: 2 | C92: 0.6666666667 | D92: 2012-07-09T16:46:48 | E92: 2012-07-10T12:28:28 | F92: 16:46:48 | G92: 12:28:28 | H92: 0.1758333333 | I92: 0.1758333333 | J92: 1 | K92: 2 | M92: 0.1758333333 | N92: 0.1756944444
A93: 0.8593055556 | B93: 2 | C93: 0.6666666667 | D93: 2012-07-02T15:57:35 | E93: 2012-07-03T12:34:59 | F93: 15:57:35 | G93: 12:34:59 | H93: 0.2100115741 | I93: 0.2100115741 | J93: 1 | K93: 2 | M93: 0.2100115741 | N93: 0.2097222222
A94: 0.8761458333 | B94: 2 | C94: 0.6666666667 | D94: 2012-07-09T15:39:51 | E94: 2012-07-10T12:41:30 | F94: 15:39:51 | G94: 12:41:30 | H94: 0.2223263889 | I94: 0.2223263889 | J94: 1 | K94: 2 | M94: 0.2223263889 | N94: 0.2222222222
A95: 0.8789351852 | B95: 2 | C95: 0.6666666667 | D95: 2012-07-16T14:47:32 | E95: 2012-07-17T11:53:12 | F95: 14:47:32 | G95: 11:53:12 | H95: 0.2539351852 | I95: 0.2539351852 | J95: 1 | K95: 2 | M95: 0.2539351852 | N95: 0.2534722222
A96: 0.9230671296 | B96: 2 | C96: 0.6666666667 | D96: 2012-07-24T11:19:11 | E96: 2012-07-25T09:28:24 | F96: 11:19:11 | G96: 09:28:24 | H96: 0.256400463 | I96: 0.256400463 | J96: 2 | K96: 3 | M96: 0.256400463 | N96: 0.25625
A97: 0.9637268519 | B97: 2 | C97: 0.6666666667 | D97: 2012-07-02T16:08:23 | E97: 2012-07-03T15:16:09 | F97: 16:08:23 | G97: 15:16:09 | H97: 0.2970601852 | I97: 0.2970601852 | J97: 1 | K97: 2 | M97: 0.2970601852 | N97: 0.2972222222
A98: 0.9764583333 | B98: 2 | C98: 0.6666666667 | D98: 2012-07-18T16:01:41 | E98: 2012-07-19T15:27:47 | F98: 16:01:41 | G98: 15:27:47 | H98: 0.3097916667 | I98: 0.3097916667 | J98: 3 | K98: 4 | M98: 0.3097916667 | N98: 0.3097222222
A99: 0.9764814815 | B99: 2 | C99: 0.6666666667 | D99: 2012-07-16T13:51:35 | E99: 2012-07-17T13:17:43 | F99: 13:51:35 | G99: 13:17:43 | H99: 0.3098148148 | I99: 0.3098148148 | J99: 1 | K99: 2 | M99: 0.3098148148 | N99: 0.3097222222
A100: 0.9865856481 | B100: =NETWORKDAYS(D100,IF(E100="",TODAY(),E100)) -> 2 | C100: =$C$1*B100 -> 0.6666666667 | D100: 2012-07-10T11:39:05 | E100: 2012-07-11T11:19:46 | F100: =MOD(D100,1) -> 11:39:05 | G100: =MOD(E100,1) -> 11:19:46 | H100: =C100-IF((OR(WEEKDAY(D100)=1,WEEKDAY(D100)=7)),0,(IF(MOD(D100,1)<$E$1,0,(IF(AND($E$1<MOD(D100,1),MOD(D100,1)<$E$2),MOD(D100,1)-$E$1,(IF(AND($E$2<MOD(D100,1),MOD(D100,1)<$F$2),$E$2-$E$1,(IF(AND($F$2<MOD(D100,1),MOD(D100,1)<$F$1),$E$2-$E$1+MOD(D100,1)-$F$2,(IF(MOD(D100,1)>$F$1,$C$1)))))))))))-IF((OR(WEEKDAY(IF(E100="",TODAY(),E100))=1,WEEKDAY(IF(E100="",TODAY(),E100))=7)),0,(IF(MOD(IF(E100="",TODAY(),E100),1)<$E$1,$C$1,(IF(AND($E$1<MOD(IF(E100="",TODAY(),E100),1),MOD(IF(E100="",TODAY(),E100),1)<$E$2),$F$1-$F$2+$E$2-MOD(IF(E100="",TODAY(),E100),1),(IF(AND($E$2<MOD(IF(E100="",TODAY(),E100),1),MOD(IF(E100="",TODAY(),E100),1)<$F$2),$F$1-$F$2,(IF(AND($F$2<MOD(IF(E100="",TODAY(),E100),1),MOD(IF(E100="",TODAY(),E100),1)<$F$1),$F$1-MOD(IF(E100="",TODAY(),E100),1),(IF(MOD(IF(E100="",TODAY(),E100),1)>$F$1,0))))))))))) -> 0.3199189815 | I100: =C100-(IF(F100<$E$1,0,(IF(AND($E$1<F100,F100<$E$2),F100-$E$1,(IF(AND($E$2<F100,F100<$F$2),$E$2-$E$1,(IF(AND($F$2<F100,F100<$F$1),$E$2-$E$1+F100-$F$2,(IF(F100>$F$1,$C$1))))))))))-(IF(G100<$E$1,$C$1,(IF(AND($E$1<G100,G100<$E$2),$F$1-$F$2+$E$2-G100,(IF(AND($E$2<G100,G100<$F$2),$F$1-$F$2,(IF(AND($F$2<G100,G100<$F$1),$F$1-G100,(IF(G100>$F$1,0)))))))))) -> 0.3199189815 | J100: =WEEKDAY(D100,2) -> 2 | K100: =WEEKDAY(E100,2) -> 3 | M100: 0.3199189815 | N100: 0.3201388889
A101: 1.019131944 | B101: 2 | C101: 0.6666666667 | D101: 2012-07-23T16:38:42 | E101: 2012-07-24T17:06:15 | F101: 16:38:42 | G101: 17:06:15 | H101: 0.3524652778 | I101: 0.3524652778 | J101: 1 | K101: 2 | M101: 0.3524652778 | N101: 0.3520833333
A102: 1.024201389 | B102: 2 | C102: 0.6666666667 | D102: 2012-07-19T16:16:03 | E102: 2012-07-20T16:50:54 | F102: 16:16:03 | G102: 16:50:54 | H102: 0.3575347222 | I102: 0.3575347222 | J102: 4 | K102: 5 | M102: 0.3575347222 | N102: 0.3576388889
A103: 1.025277778 | B103: 2 | C103: 0.6666666667 | D103: 2012-07-19T16:14:49 | E103: 2012-07-20T16:51:13 | F103: 16:14:49 | G103: 16:51:13 | H103: 0.3586111111 | I103: 0.3586111111 | J103: 4 | K103: 5 | M103: 0.3586111111 | N103: 0.3583333333
A104: 1.031157407 | B104: 2 | C104: 0.6666666667 | D104: 2012-07-19T16:33:27 | E104: 2012-07-20T17:18:19 | F104: 16:33:27 | G104: 17:18:19 | H104: 0.3644907407 | I104: 0.3644907407 | J104: 4 | K104: 5 | M104: 0.3644907407 | N104: 0.3645833333
A105: 1.047141204 | B105: 2 | C105: 0.6666666667 | D105: 2012-07-11T14:51:39 | E105: 2012-07-12T15:59:32 | F105: 14:51:39 | G105: 15:59:32 | H105: 0.380474537 | I105: 0.380474537 | J105: 3 | K105: 4 | M105: 0.380474537 | N105: 0.3805555556
A106: 1.048865741 | B106: 2 | C106: 0.6666666667 | D106: 2012-07-16T12:11:20 | E106: 2012-07-17T13:21:42 | F106: 12:11:20 | G106: 13:21:42 | H106: 0.3484027778 | I106: 0.3484027778 | J106: 1 | K106: 2 | M106: 0.3484027778 | N106: 0.3486111111
A107: 1.111331019 | B107: 2 | C107: 0.6666666667 | D107: 2012-07-12T08:21:11 | E107: 2012-07-13T11:01:30 | F107: 08:21:11 | G107: 11:01:30 | H107: 0.4385416667 | I107: 0.4385416667 | J107: 4 | K107: 5 | M107: 0.4385416667 | N107: 0.4381944444
A108: 1.154143519 | B108: 2 | C108: 0.6666666667 | D108: 2012-07-12T13:46:40 | E108: 2012-07-13T17:28:38 | F108: 13:46:40 | G108: 17:28:38 | H108: 0.4874768519 | I108: 0.4874768519 | J108: 4 | K108: 5 | M108: 0.4874768519 | N108: 0.4875
A109: 1.158344907 | B109: 2 | C109: 0.6666666667 | D109: 2012-07-25T13:08:32 | E109: 2012-07-26T16:56:33 | F109: 13:08:32 | G109: 16:56:33 | H109: 0.4916782407 | I109: 0.4916782407 | J109: 3 | K109: 4 | M109: 0.4916782407 | N109: 0.4916666667
A110: 1.169756944 | B110: 2 | C110: 0.6666666667 | D110: 2012-07-10T11:46:48 | E110: 2012-07-11T15:51:15 | F110: 11:46:48 | G110: 15:51:15 | H110: 0.4614236111 | I110: 0.4614236111 | J110: 2 | K110: 3 | M110: 0.4614236111 | N110: 0.4611111111
A111: 1.171145833 | B111: 2 | C111: 0.6666666667 | D111: 2012-07-12T13:22:58 | E111: 2012-07-13T17:29:25 | F111: 13:22:58 | G111: 17:29:25 | H111: 0.5044791667 | I111: 0.5044791667 | J111: 4 | K111: 5 | M111: 0.5044791667 | N111: 0.5041666667
A112: 1.212083333 | B112: 2 | C112: 0.6666666667 | D112: 2012-07-19T09:37:42 | E112: 2012-07-20T14:43:06 | F112: 09:37:42 | G112: 14:43:06 | H112: 0.50375 | I112: 0.50375 | J112: 4 | K112: 5 | M112: 0.50375 | N112: 0.5034722222
A113: 1.212916667 | B113: 2 | C113: 0.6666666667 | D113: 2012-07-23T10:59:37 | E113: 2012-07-24T16:06:13 | F113: 10:59:37 | G113: 16:06:13 | H113: 0.5045833333 | I113: 0.5045833333 | J113: 1 | K113: 2 | M113: 0.5045833333 | N113: 0.5041666667
A114: 1.246365741 | B114: 2 | C114: 0.6666666667 | D114: 2012-07-16T09:15:11 | E114: 2012-07-17T15:09:57 | F114: 09:15:11 | G114: 15:09:57 | H114: 0.5380324074 | I114: 0.5380324074 | J114: 1 | K114: 2 | M114: 0.5380324074 | N114: 0.5381944444
A115: 1.261273148 | B115: 2 | C115: 0.6666666667 | D115: 2012-07-19T09:06:28 | E115: 2012-07-20T15:22:42 | F115: 09:06:28 | G115: 15:22:42 | H115: 0.5529398148 | I115: 0.5529398148 | J115: 4 | K115: 5 | M115: 0.5529398148 | N115: 0.5534722222
A116: 1.267928241 | B116: 2 | C116: 0.6666666667 | D116: 2012-07-24T09:24:39 | E116: 2012-07-25T15:50:28 | F116: 09:24:39 | G116: 15:50:28 | H116: 0.5595949074 | I116: 0.5595949074 | J116: 2 | K116: 3 | M116: 0.5595949074 | N116: 0.5590277778
A117: 1.324675926 | B117: 2 | C117: 0.6666666667 | D117: 2012-07-09T09:34:20 | E117: 2012-07-10T17:21:52 | F117: 09:34:20 | G117: 17:21:52 | H117: 0.6163425926 | I117: 0.6163425926 | J117: 1 | K117: 2 | M117: 0.6163425926 | N117: 0.6166666667
A118: 1.833553241 | B118: 3 | C118: 1 | D118: 2012-06-26T13:04:15 | E118: 2012-06-28T09:04:34 | F118: 13:04:15 | G118: 09:04:34 | H118: 0.5418865741 | I118: 0.5418865741 | J118: 2 | K118: 4 | M118: 0.5418865741 | N118: 0.5423611111
A119: 1.939502315 | B119: 3 | C119: 1 | D119: 2012-07-18T16:56:45 | E119: 2012-07-20T15:29:38 | F119: 16:56:45 | G119: 15:29:38 | H119: 0.6061689815 | I119: 0.6061689815 | J119: 3 | K119: 5 | M119: 0.6061689815 | N119: 0.60625
A120: 1.94943287 | B120: 3 | C120: 1 | D120: 2012-07-09T17:04:38 | E120: 2012-07-11T15:51:49 | F120: 17:04:38 | G120: 15:51:49 | H120: 0.616099537 | I120: 0.616099537 | J120: 1 | K120: 3 | M120: 0.616099537 | N120: 0.6159722222
A121: 1.998611111 | B121: 3 | C121: 1 | D121: 2012-07-18T10:25:18 | E121: 2012-07-20T10:23:18 | F121: 10:25:18 | G121: 10:23:18 | H121: 0.6652777778 | I121: 0.6652777778 | J121: 3 | K121: 5 | M121: 0.6652777778 | N121: 0.6652777778
A122: 2.030092593 | B122: 3 | C122: 1 | D122: 2012-07-23T08:32:11 | E122: 2012-07-25T09:15:31 | F122: 08:32:11 | G122: 09:15:31 | H122: 0.6967592593 | I122: 0.6967592593 | J122: 1 | K122: 3 | M122: 0.6967592593 | N122: 0.6972222222
A123: 2.120520833 | B123: 3 | C123: 1 | D123: 2012-07-24T08:56:38 | E123: 2012-07-26T11:50:11 | F123: 08:56:38 | G123: 11:50:11 | H123: 0.7871875 | I123: 0.7871875 | J123: 2 | K123: 4 | M123: 0.7871875 | N123: 0.7868055556
A124: 2.205486111 | B124: 3 | C124: 1 | D124: 2012-07-03T14:02:44 | E124: 2012-07-05T18:58:38 | F124: 14:02:44 | G124: 18:58:38 | H124: 0.8106018518 | I124: 0.8106018518 | J124: 2 | K124: 4 | M124: 0.8106018518 | N124: 0.8104166667
A125: 2.235416667 | B125: 3 | C125: 1 | D125: 2012-07-23T10:01:59 | E125: 2012-07-25T15:40:59 | F125: 10:01:59 | G125: 15:40:59 | H125: 0.8604166667 | I125: 0.8604166667 | J125: 1 | K125: 3 | M125: 0.8604166667 | N125: 0.8604166667
A126: 2.754675926 | B126: 2 | C126: 0.6666666667 | D126: 2012-07-13T16:33:09 | E126: 2012-07-16T10:39:53 | F126: 16:33:09 | G126: 10:39:53 | H126: 0.1296759259 | I126: 0.1296759259 | J126: 5 | K126: 1 | M126: 0.1296759259 | N126: 0.1298611111
A127: 2.798530093 | B127: 4 | C127: 1.333333333 | D127: 2012-07-09T15:15:48 | E127: 2012-07-12T10:25:41 | F127: 15:15:48 | G127: 10:25:41 | H127: 0.8401967593 | I127: 0.8401967593 | J127: 1 | K127: 4 | M127: 0.8401967593 | N127: 0.8402777778
A128: 2.800590278 | B128: 2 | C128: 0.6666666667 | D128: 2012-07-13T14:46:06 | E128: 2012-07-16T09:58:57 | F128: 14:46:06 | G128: 09:58:57 | H128: 0.1755902778 | I128: 0.1755902778 | J128: 5 | K128: 1 | M128: 0.1755902778 | N128: 0.1756944444
A129: 2.805462963 | B129: 2 | C129: 0.6666666667 | D129: 2012-07-06T15:32:33 | E129: 2012-07-09T10:52:25 | F129: 15:32:33 | G129: 10:52:25 | H129: 0.180462963 | I129: 0.180462963 | J129: 5 | K129: 1 | M129: 0.180462963 | N129: 0.1798611111
A130: 2.812210648 | B130: 4 | C130: 1.333333333 | D130: 2012-06-25T16:39:22 | E130: 2012-06-28T12:08:57 | F130: 16:39:22 | G130: 12:08:57 | H130: 0.847662037 | I130: 0.847662037 | J130: 1 | K130: 4 | M130: 0.847662037 | N130: 0.8479166667
A131: 2.855810185 | B131: 2 | C131: 0.6666666667 | D131: 2012-07-13T15:59:23 | E131: 2012-07-16T12:31:45 | F131: 15:59:23 | G131: 12:31:45 | H131: 0.2087615741 | I131: 0.2087615741 | J131: 5 | K131: 1 | M131: 0.2087615741 | N131: 0.2090277778
A132: 2.862060185 | B132: =NETWORKDAYS(D132,IF(E132="",TODAY(),E132)) -> 4 | C132: =$C$1*B132 -> 1.333333333 | D132: 2012-07-09T15:43:58 | E132: 2012-07-12T12:25:20 | F132: =MOD(D132,1) -> 15:43:58 | G132: =MOD(E132,1) -> 12:25:20 | H132: =C132-IF((OR(WEEKDAY(D132)=1,WEEKDAY(D132)=7)),0,(IF(MOD(D132,1)<$E$1,0,(IF(AND($E$1<MOD(D132,1),MOD(D132,1)<$E$2),MOD(D132,1)-$E$1,(IF(AND($E$2<MOD(D132,1),MOD(D132,1)<$F$2),$E$2-$E$1,(IF(AND($F$2<MOD(D132,1),MOD(D132,1)<$F$1),$E$2-$E$1+MOD(D132,1)-$F$2,(IF(MOD(D132,1)>$F$1,$C$1)))))))))))-IF((OR(WEEKDAY(IF(E132="",TODAY(),E132))=1,WEEKDAY(IF(E132="",TODAY(),E132))=7)),0,(IF(MOD(IF(E132="",TODAY(),E132),1)<$E$1,$C$1,(IF(AND($E$1<MOD(IF(E132="",TODAY(),E132),1),MOD(IF(E132="",TODAY(),E132),1)<$E$2),$F$1-$F$2+$E$2-MOD(IF(E132="",TODAY(),E132),1),(IF(AND($E$2<MOD(IF(E132="",TODAY(),E132),1),MOD(IF(E132="",TODAY(),E132),1)<$F$2),$F$1-$F$2,(IF(AND($F$2<MOD(IF(E132="",TODAY(),E132),1),MOD(IF(E132="",TODAY(),E132),1)<$F$1),$F$1-MOD(IF(E132="",TODAY(),E132),1),(IF(MOD(IF(E132="",TODAY(),E132),1)>$F$1,0))))))))))) -> 0.8861342593 | I132: =C132-(IF(F132<$E$1,0,(IF(AND($E$1<F132,F132<$E$2),F132-$E$1,(IF(AND($E$2<F132,F132<$F$2),$E$2-$E$1,(IF(AND($F$2<F132,F132<$F$1),$E$2-$E$1+F132-$F$2,(IF(F132>$F$1,$C$1))))))))))-(IF(G132<$E$1,$C$1,(IF(AND($E$1<G132,G132<$E$2),$F$1-$F$2+$E$2-G132,(IF(AND($E$2<G132,G132<$F$2),$F$1-$F$2,(IF(AND($F$2<G132,G132<$F$1),$F$1-G132,(IF(G132>$F$1,0)))))))))) -> 0.8861342593 | J132: =WEEKDAY(D132,2) -> 1 | K132: =WEEKDAY(E132,2) -> 4 | M132: 0.8861342593 | N132: 0.8861111111
A133: 2.965405093 | B133: 2 | C133: 0.6666666667 | D133: 2012-07-13T11:31:00 | E133: 2012-07-16T10:41:11 | F133: 11:31:00 | G133: 10:41:11 | H133: 0.2987384259 | I133: 0.2987384259 | J133: 5 | K133: 1 | M133: =(WEEKDAY(D133,2)<6)*($E$2-MAX(MIN(MOD(D133,1),$E$2),$E$1)+$F$1-MAX(MIN(MOD(D133,1),$F$1),$F$2))+(WEEKDAY(E133,2)<6)*(MAX(MIN(MOD(E133,1),$E$2),$E$1)-$E$1+MAX(MIN(MOD(E133,1),$F$1),$F$2)-$F$2)+(NETWORKDAYS(WORKDAY(D133+1,-1),WORKDAY(E133-1,1))-2)*$C$1 -> 0.2987384259 | N133: =NetWorkTime(D133,E133) -> 0.2986111111
A134: 3.036967593 | B134: 2 | C134: 0.6666666667 | D134: 2012-07-20T15:45:55 | E134: 2012-07-23T16:39:09 | F134: 15:45:55 | G134: 16:39:09 | H134: 0.3703009259 | I134: 0.3703009259 | J134: 5 | K134: 1 | M134: 0.3703009259 | N134: 0.3701388889
A135: 3.070266204 | B135: 2 | C135: 0.6666666667 | D135: 2012-07-13T10:40:35 | E135: 2012-07-16T12:21:46 | F135: 10:40:35 | G135: 12:21:46 | H135: 0.3884837963 | I135: 0.3884837963 | J135: 5 | K135: 1 | M135: 0.3884837963 | N135: 0.3881944444
A136: 3.85837963 | B136: 3 | C136: 1 | D136: 2012-07-13T16:17:13 | E136: 2012-07-17T12:53:17 | F136: 16:17:13 | G136: 12:53:17 | H136: 0.5297106481 | I136: 0.5297106481 | J136: 5 | K136: 2 | M136: 0.5297106481 | N136: 0.5298611111
A137: 3.893784722 | B137: 3 | C137: 1 | D137: 2012-07-13T15:28:15 | E137: 2012-07-17T12:55:18 | F137: 15:28:15 | G137: 12:55:18 | H137: 0.5637152778 | I137: 0.5637152778 | J137: 5 | K137: 2 | M137: 0.5637152778 | N137: 0.5638888889
A138: 4.009305556 | B138: 3 | C138: 1 | D138: 2012-07-19T14:43:41 | E138: 2012-07-23T14:57:05 | F138: 14:43:41 | G138: 14:57:05 | H138: 0.6759722222 | I138: 0.6759722222 | J138: 4 | K138: 1 | M138: 0.6759722222 | N138: 0.6756944444
A139: 4.192326389 | B139: 3 | C139: 1 | D139: 2012-07-05T10:09:20 | E139: 2012-07-09T14:46:17 | F139: 10:09:20 | G139: 14:46:17 | H139: 0.8173263889 | I139: 0.8173263889 | J139: 4 | K139: 1 | M139: 0.8173263889 | N139: 0.8173611111
A140: 4.199803241 | B140: 3 | C140: 1 | D140: 2012-07-12T12:14:29 | E140: 2012-07-16T17:02:12 | F140: 12:14:29 | G140: 17:02:12 | H140: 0.8348611111 | I140: 0.8348611111 | J140: 4 | K140: 1 | M140: 0.8348611111 | N140: 0.8347222222
A141: 4.809201389 | B141: 4 | C141: 1.333333333 | D141: 2012-07-06T16:38:17 | E141: 2012-07-11T12:03:32 | F141: 16:38:17 | G141: 12:03:32 | H141: 0.8484143519 | I141: 0.8484143519 | J141: 5 | K141: 3 | M141: 0.8484143519 | N141: 0.8486111111
A142: 4.994884259 | B142: 4 | C142: 1.333333333 | D142: 2012-07-19T13:58:10 | E142: 2012-07-24T13:50:48 | F142: 13:58:10 | G142: 13:50:48 | H142: 0.9948842593 | I142: 0.9948842593 | J142: 4 | K142: 2 | M142: 0.9948842593 | N142: 0.9951388889
A143: 5.116006944 | B143: 4 | C143: 1.333333333 | D143: 2012-07-13T10:56:26 | E143: 2012-07-18T13:43:29 | F143: 10:56:26 | G143: 13:43:29 | H143: 1.074340278 | I143: 1.074340278 | J143: 5 | K143: 3 | M143: 1.074340278 | N143: 1.074305556
A144: 5.310694444 | B144: 4 | C144: 1.333333333 | D144: 2012-07-13T09:23:41 | E144: 2012-07-18T16:51:05 | F144: 09:23:41 | G144: 16:51:05 | H144: 1.269027778 | I144: 1.269027778 | J144: 5 | K144: 3 | M144: 1.269027778 | N144: 1.26875
A145: 5.803425926 | B145: 5 | C145: 1.666666667 | D145: 2012-06-27T15:40:04 | E145: 2012-07-03T10:57:00 | F145: 15:40:04 | G145: 10:57:00 | H145: 1.178425926 | I145: 1.178425926 | J145: 3 | K145: 2 | M145: 1.178425926 | N145: 1.178472222
A146: 5.917106481 | B146: 5 | C146: 1.666666667 | D146: 2012-07-19T10:06:16 | E146: 2012-07-25T08:06:54 | F146: 10:06:16 | G146: 08:06:54 | H146: 1.266481481 | I146: 1.266481481 | J146: 4 | K146: 3 | M146: 1.266481481 | N146: 1.266666667
A147: 5.96068287 | B147: 5 | C147: 1.666666667 | D147: 2012-07-03T15:46:12 | E147: 2012-07-09T14:49:35 | F147: 15:46:12 | G147: 14:49:35 | H147: 1.294016204 | I147: 1.294016204 | J147: 2 | K147: 1 | M147: 1.294016204 | N147: 1.294444444
A148: 6.0134375 | B148: 5 | C148: 1.666666667 | D148: 2012-06-29T11:29:46 | E148: 2012-07-05T11:49:07 | F148: 11:29:46 | G148: 11:49:07 | H148: 1.346770833 | I148: 1.346770833 | J148: 5 | K148: 4 | M148: 1.346770833 | N148: 1.346527778
A149: 6.015081019 | B149: 5 | C149: 1.666666667 | D149: 2012-06-29T11:30:38 | E149: 2012-07-05T11:52:21 | F149: 11:30:38 | G149: 11:52:21 | H149: 1.348414352 | I149: 1.348414352 | J149: 5 | K149: 4 | M149: 1.348414352 | N149: 1.347916667
A150: 6.75025463 | B150: 6 | C150: 2 | D150: 2012-07-12T15:58:21 | E150: 2012-07-19T09:58:43 | F150: 15:58:21 | G150: 09:58:43 | H150: 1.458587963 | I150: 1.458587963 | J150: 4 | K150: 4 | M150: 1.458587963 | N150: 1.459027778
A151: 6.838217593 | B151: 6 | C151: 2 | D151: 2012-07-20T16:26:33 | E151: 2012-07-27T12:33:35 | F151: 16:26:33 | G151: 12:33:35 | H151: 1.523229167 | I151: 1.523229167 | J151: 5 | K151: 5 | M151: 1.523229167 | N151: 1.522916667
A152: 7.758020833 | B152: 7 | C152: 2.333333333 | D152: 2012-07-12T15:30:40 | E152: 2012-07-20T09:42:13 | F152: 15:30:40 | G152: 09:42:13 | H152: 1.7996875 | I152: 1.7996875 | J152: 4 | K152: 5 | M152: 1.7996875 | N152: 1.799305556
A153: 10.17121528 | B153: 7 | C153: 2.333333333 | D153: 2012-07-06T12:56:47 | E153: 2012-07-16T17:03:20 | F153: 12:56:47 | G153: 17:03:20 | H153: 2.168981481 | I153: 2.168981481 | J153: 5 | K153: 1 | M153: 2.168981481 | N153: 2.16875
A154: 10.77445602 | B154: 9 | C154: 3 | D154: 2012-07-15T14:30:13 | E154: 2012-07-26T09:05:26 | F154: 14:30:13 | G154: 09:05:26 | H154: 2.691273148 | I154: 2.482789352 | J154: 7 | K154: 4 | M154: 2.691273148 | N154: 2.690972222
A155: 10.94877315 | B155: 8 | C155: 2.666666667 | D155: 2012-07-19T10:11:30 | E155: 2012-07-30T08:57:44 | F155: 10:11:30 | G155: 08:57:44 | H155: 2.282106481 | I155: 2.282106481 | J155: 4 | K155: 1 | M155: 2.282106481 | N155: 2.281944444
A156: 12.12253472 | B156: 9 | C156: 3 | D156: 2012-07-04T10:36:52 | E156: 2012-07-16T13:33:19 | F156: 10:36:52 | G156: 13:33:19 | H156: 2.747534722 | I156: 2.747534722 | J156: 3 | K156: 1 | M156: 2.747534722 | N156: 2.747222222
A157: 12.29636574 | B157: 9 | C157: 3 | D157: 2012-07-04T08:36:59 | E157: 2012-07-16T15:43:45 | F157: 08:36:59 | G157: 15:43:45 | H157: 2.921365741 | I157: 2.921365741 | J157: 3 | K157: 1 | M157: 2.921365741 | N157: 2.921527778
A158: 15.13087963 | B158: 12 | C158: 4 | D158: 2012-07-11T08:23:55 | E158: 2012-07-26T11:32:23 | F158: 08:23:55 | G158: 11:32:23 | H158: 3.793321759 | I158: 3.793321759 | J158: 3 | K158: 4 | M158: 3.793321759 | N158: 3.793055556
A159: 19.7447338 | B159: 15 | C159: 5 | D159: 2012-06-27T14:42:59 | E159: 2012-07-17T08:35:24 | F159: 14:42:59 | G159: 08:35:24 | H159: 4.45306713 | I159: 4.45306713 | J159: 3 | K159: 2 | M159: 4.45306713 | N159: 4.452777778
A160: Не выполнено | B160: 8 | C160: 2.666666667 | D160: 2012-07-25T16:45:21 | F160: 16:45:21 | G160: 00:00:00 | H160: 2.364340278 | I160: 2.031006944 | J160: 3 | K160: 6
A161: Не выполнено | B161: 10 | C161: 3.333333333 | D161: 2012-07-23T11:04:41 | F161: 11:04:41 | G161: 00:00:00 | H161: 3.225914352 | I161: 2.892581019 | J161: 1 | K161: 6
A162: Не выполнено | B162: 10 | C162: 3.333333333 | D162: 2012-07-23T12:55:58 | F162: 12:55:58 | G162: 00:00:00 | H162: 3.1875 | I162: 2.854166667 | J162: 1 | K162: 6
A163: Не выполнено | B163: 10 | C163: 3.333333333 | D163: 2012-07-23T14:04:29 | F163: 14:04:29 | G163: 00:00:00 | H163: 3.142719907 | I163: 2.809386574 | J163: 1 | K163: 6
A164: Не выполнено | B164: =NETWORKDAYS(D164,IF(E164="",TODAY(),E164)) -> 13 | C164: =$C$1*B164 -> 4.333333333 | D164: 2012-07-18T14:50:12 | F164: =MOD(D164,1) -> 14:50:12 | G164: =MOD(E164,1) -> 00:00:00 | H164: =C164-IF((OR(WEEKDAY(D164)=1,WEEKDAY(D164)=7)),0,(IF(MOD(D164,1)<$E$1,0,(IF(AND($E$1<MOD(D164,1),MOD(D164,1)<$E$2),MOD(D164,1)-$E$1,(IF(AND($E$2<MOD(D164,1),MOD(D164,1)<$F$2),$E$2-$E$1,(IF(AND($F$2<MOD(D164,1),MOD(D164,1)<$F$1),$E$2-$E$1+MOD(D164,1)-$F$2,(IF(MOD(D164,1)>$F$1,$C$1)))))))))))-IF((OR(WEEKDAY(IF(E164="",TODAY(),E164))=1,WEEKDAY(IF(E164="",TODAY(),E164))=7)),0,(IF(MOD(IF(E164="",TODAY(),E164),1)<$E$1,$C$1,(IF(AND($E$1<MOD(IF(E164="",TODAY(),E164),1),MOD(IF(E164="",TODAY(),E164),1)<$E$2),$F$1-$F$2+$E$2-MOD(IF(E164="",TODAY(),E164),1),(IF(AND($E$2<MOD(IF(E164="",TODAY(),E164),1),MOD(IF(E164="",TODAY(),E164),1)<$F$2),$F$1-$F$2,(IF(AND($F$2<MOD(IF(E164="",TODAY(),E164),1),MOD(IF(E164="",TODAY(),E164),1)<$F$1),$F$1-MOD(IF(E164="",TODAY(),E164),1),(IF(MOD(IF(E164="",TODAY(),E164),1)>$F$1,0))))))))))) -> 4.110972222 | I164: =C164-(IF(F164<$E$1,0,(IF(AND($E$1<F164,F164<$E$2),F164-$E$1,(IF(AND($E$2<F164,F164<$F$2),$E$2-$E$1,(IF(AND($F$2<F164,F164<$F$1),$E$2-$E$1+F164-$F$2,(IF(F164>$F$1,$C$1))))))))))-(IF(G164<$E$1,$C$1,(IF(AND($E$1<G164,G164<$E$2),$F$1-$F$2+$E$2-G164,(IF(AND($E$2<G164,G164<$F$2),$F$1-$F$2,(IF(AND($F$2<G164,G164<$F$1),$F$1-G164,(IF(G164>$F$1,0)))))))))) -> 3.777638889 | J164: =WEEKDAY(D164,2) -> 3 | K164: =WEEKDAY(E164,2) -> 6
A165: Не выполнено | B165: 14 | C165: 4.666666667 | D165: 2012-07-17T08:40:59 | F165: 08:40:59 | G165: 00:00:00 | H165: 4.659039352 | I165: 4.325706019 | J165: 2 | K165: 6
A166: Не выполнено | B166: 14 | C166: 4.666666667 | D166: 2012-07-17T11:06:58 | F166: 11:06:58 | G166: 00:00:00 | H166: 4.557662037 | I166: 4.224328704 | J166: 2 | K166: 6
A167: Не выполнено | B167: 15 | C167: 5 | D167: 2012-07-16T09:55:04 | F167: 09:55:04 | G167: 00:00:00 | H167: 4.940925926 | I167: 4.607592593 | J167: 1 | K167: 6
A168: Не выполнено | B168: 19 | C168: 6.333333333 | D168: 2012-07-10T12:45:13 | F168: 12:45:13 | G168: 00:00:00 | H168: 6.1875 | I168: 5.854166667 | J168: 2 | K168: 6
A169: Не выполнено | B169: 25 | C169: 8.333333333 | D169: 2012-07-02T08:45:00 | F169: 08:45:00 | G169: 00:00:00 | H169: 8.322916667 | I169: 7.989583333 | J169: 1 | K169: 6
A170: Не выполнено | B170: 25 | C170: 8.333333333 | D170: 2012-07-02T11:34:34 | F170: 11:34:34 | G170: 00:00:00 | H170: 8.205162037 | I170: 7.871828704 | J170: 1 | K170: 6

Sheet Лист2
A10: E1- (ЕСЛИ (G4<G1;0; (ЕСЛИ (G1<G4<G2;G4-G1; ( ЕСЛИ ( G2<G4<H2;G2-G1; ( ЕСЛИ (H2<G4<H1;G2-G1-G4+H2; (ЕСЛИ(G4>H1;E1)) ) ) ) ) ) ) ) )

Sheet Лист3
